bitfinex-derivatives/quotes_ETHF0:USTF0_20250804
["timestamp","ask_amount","ask_price","bid_price","bid_amount"]
[1754348737386,2.09915646,3726.6,3726.5,2.23733]
[1754348737693,2.30647746,3726.6,3726.5,2.23733]
[1754348737890,2.09915646,3726.6,3726.5,2.23733]
[1754348738088,1.03417387,3726.6,3726.5,2.23733]
[1754348738493,2.28957387,3726.6,3726.5,2.23733]
[1754348738689,2.59737387,3726.6,3726.5,2.23733]
[1754348738990,2.59737387,3726.6,3726.5,0.496]
[1754348739293,2.09986,3726.4,3726.3,1.03915]
[1754348739492,2.92671646,3726.4,3726.3,0.83805]
[1754348739693,3.13408555,3726.4,3726.3,0.83805]
[1754348740093,0.5834,3726.2,3725.6,4.54972]
[1754348740389,1.5632,3726.1,3726.0,0.5367]
[1754348740702,1.5632,3726.1,3726.0,1.7689]
[1754348740991,1.5632,3726.0,3725.9,2.26672]
[1754348744090,0.5367,3726.1,3726.0,1.23699]
[1754348744285,0.74692394,3726.1,3726.0,0.7003]
[1754348744491,2.31012394,3726.1,3726.0,1.73]
[1754348744992,3.13781587,3726.1,3726.0,1.73]
[1754348745885,1.95581587,3726.1,3726.0,1.73]
[1754348746095,3.13781587,3726.1,3726.0,1.73]
[1754348746294,1.80915,3725.8,3725.7,1.73]
[1754348746496,2.09995,3725.8,3725.7,1.73]
[1754348746893,2.09998,3725.5,3725.4,1.43]
[1754348747388,2.09998,3725.5,3725.4,0.5025]
[1754348747590,0.689,3725.0,3724.9,1.53716]
[1754348747795,1.5632,3725.0,3724.9,1.53716]
[1754348748188,2.10005,3725.0,3724.9,2.26686]
[1754348748596,2.10005,3725.0,3724.9,1.73]
[1754348749100,1.5632,3724.6,3724.4,0.53693]
[1754348749298,0.9798,3724.6,3724.5,0.3014]
[1754348749493,0.3812,3724.6,3724.5,1.73]
[1754348749688,0.53689,3724.8,3724.2,4.55021]
[1754348749888,1.34209,3725.2,3724.2,4.55021]
[1754348749889,0.1917,3724.9,3724.8,1.0003]
[1754348750093,3.3973,3725.0,3724.9,1.2884]
[1754348750293,3.8812,3725.0,3724.9,1.2884]
[1754348750494,0.53683,3725.2,3725.1,0.5025]
[1754348750688,1.36420324,3725.2,3725.1,1.73]
[1754348750894,0.21022654,3725.5,3725.4,1.73]
[1754348751198,0.82734732,3725.5,3725.4,1.73]
[1754348751693,3.589,3725.9,3725.8,1.96674]
[1754348751898,4.24535332,3725.9,3725.8,2.26674]
[1754348753293,4.03514228,3725.9,3725.8,2.26674]
[1754348753593,4.03514228,3725.9,3725.8,1.73]
[1754348753787,4.62654516,3725.9,3725.8,1.73]
[1754348753993,5.80854516,3725.9,3725.8,1.73]
[1754348754193,5.80854516,3725.9,3725.8,0.7003]
[1754348754391,0.689,3725.7,3725.6,1.23705]
[1754348754591,0.59140288,3725.7,3725.6,2.26675]
[1754348754797,0.39970288,3725.7,3725.6,2.26675]
[1754348755201,0.21020288,3725.7,3725.6,2.26675]
[1754348756405,3.2078,3726.3,3726.2,2.26668]
[1754348756703,4.29458625,3726.3,3726.2,2.26668]
[1754348756894,5.38808625,3726.3,3726.2,1.73]
[1754348757099,5.98668625,3726.3,3726.2,1.73]
[1754348757703,5.72720747,3726.3,3726.2,1.73]
[1754348758399,1.6921,3726.1,3725.8,0.97833]
[1754348758699,0.3812,3725.5,3725.4,1.43]
[1754348758904,2.22884,3725.8,3725.7,2.26675]
[1754348759100,2.22884,3725.8,3725.7,1.73]
[1754348759302,2.2289,3725.4,3725.3,1.73]
[1754348759599,1.6921,3725.4,3725.3,1.73]
[1754348761198,1.4013,3725.4,3725.3,1.73]
[1754348761403,0.9812,3725.4,3725.3,1.73]
[1754348761599,3.74453,3725.9,3725.7,0.53674]
[1754348761804,4.85963,3725.9,3725.8,1.6738]
[1754348762000,5.97997373,3725.9,3725.8,1.6738]
[1754348762205,6.26177373,3725.9,3725.8,1.6738]
[1754348764109,6.26177373,3725.9,3725.8,1.3915]
[1754348764806,4.96747373,3725.9,3725.8,1.3915]
[1754348765007,5.25477373,3725.9,3725.8,1.6738]
[1754348765309,6.26177373,3725.9,3725.8,1.6738]
[1754348765504,4.03524373,3725.9,3725.8,1.6738]
[1754348766006,4.03524373,3725.9,3725.0,3.2078]
[1754348766203,1.10924373,3725.8,3725.7,0.53675]
[1754348766500,3.2078,3725.9,3725.8,1.6738]
[1754348766704,4.03531831,3725.9,3725.8,1.6738]
[1754348767108,1.22507,3726.3,3726.2,0.6874]
[1754348767409,1.02039575,3726.3,3726.2,1.6738]
[1754348768097,0.82749575,3726.3,3726.2,1.6738]
[1754348768300,1.03118506,3726.3,3726.2,1.6738]
[1754348768604,0.20368931,3726.3,3726.2,1.6738]
[1754348768805,0.20368931,3726.3,3726.2,1.2017]
[1754348768806,1.89348931,3726.3,3726.2,1.2017]
[1754348769000,1.86105931,3726.3,3726.1,0.53668]
[1754348769201,1.6898,3726.2,3726.1,0.4976]
[1754348769399,1.89351716,3726.2,3726.1,0.7782]
[1754348769599,1.17941716,3726.2,3726.1,1.2017]
[1754348769804,1.61171716,3726.2,3726.1,1.2017]
[1754348770005,1.89351716,3726.2,3726.1,1.2017]
[1754348770609,1.61171716,3726.2,3726.1,1.2017]
[1754348771005,1.17941716,3726.2,3726.1,1.2017]
[1754348771409,0.68391716,3726.2,3726.1,1.2017]
[1754348771909,0.20371716,3726.2,3726.1,1.2017]
[1754348772307,0.96501824,3727.0,3726.9,0.7041]
[1754348772604,0.25012043,3727.1,3727.0,1.73826]
[1754348772906,0.25012043,3727.2,3727.1,1.2017]
[1754348773211,3.2078,3727.3,3727.2,1.73823]
[1754348773411,3.6401,3727.7,3727.2,0.8931]
[1754348773707,4.86121824,3728.1,3728.0,1.2017]
[1754348774006,1.91112065,3728.8,3728.0,1.2017]
[1754348774007,0.96501824,3728.4,3728.0,1.2017]
[1754348774306,0.6884,3728.9,3728.8,0.4976]
[1754348774609,0.6828,3728.9,3728.8,1.738]
[1754348774811,0.4802,3728.9,3728.8,1.738]
[1754348775005,1.44370449,3729.4,3729.3,1.73793]
[1754348775201,3.2078,3729.5,3729.4,0.7041]
[1754348775408,3.4951,3729.5,3729.4,1.2017]
[1754348777508,0.2873,3729.4,3728.7,0.7041]
[1754348777710,0.4802,3728.8,3728.7,1.73802]
[1754348777903,0.4323,3729.1,3728.6,3.2078]
[1754348777904,0.9125,3729.1,3729.0,1.03388]
[1754348778114,0.4802,3729.1,3729.0,1.73798]
[1754348778816,0.4802,3729.1,3728.6,3.2078]
[1754348778817,1.22466,3729.1,3728.7,0.2806]
[1754348779016,1.6898,3728.8,3728.7,0.2806]
[1754348779314,1.6898,3728.8,3728.7,1.2017]
[1754348779513,1.6898,3728.8,3728.7,1.73801]
[1754348780608,1.6898,3728.8,3728.7,1.2017]
[1754348780810,0.53629,3728.9,3728.1,3.2078]
[1754348780811,0.6884,3728.6,3728.5,1.31454]
[1754348781109,0.9702,3728.6,3728.4,0.81695]
[1754348781310,1.6898,3728.5,3728.4,1.45745]
[1754348781912,1.6898,3728.5,3728.4,1.73805]
[1754348782313,1.6898,3728.3,3728.1,3.2078]
[1754348782513,0.53636,3728.4,3728.1,3.2078]
[1754348782514,1.0014,3728.2,3728.1,3.2078]
[1754348782705,0.9757,3728.2,3728.1,4.9459]
[1754348782905,1.94439,3728.2,3728.1,4.9459]
[1754348783211,1.22479,3728.2,3727.9,0.53642]
[1754348783411,0.6884,3728.0,3727.9,0.53642]
[1754348783716,1.6898,3728.0,3727.9,1.73812]
[1754348784815,1.6898,3728.0,3727.9,1.03402]
[1754348785210,1.6898,3728.0,3727.9,1.73812]
[1754348786015,0.6828,3728.0,3727.9,1.73812]
[1754348786320,0.4802,3728.0,3727.9,1.73812]
[1754348786519,0.6828,3728.0,3727.9,1.73812]
[1754348786719,1.6898,3728.0,3727.9,1.73812]
[1754348787815,1.408,3728.0,3727.9,1.73812]
[1754348788618,1.6898,3728.0,3727.9,1.73812]
[1754348788918,1.408,3728.0,3727.9,1.73812]
[1754348789318,3.8962,3728.3,3728.2,1.03399]
[1754348789618,4.6158,3728.3,3728.2,1.73809]
[1754348789816,3.688,3728.3,3728.2,1.73809]
[1754348790115,0.2873,3728.6,3728.5,0.53635]
[1754348790322,1.6898,3728.9,3728.8,1.738]
[1754348790516,0.9757,3728.9,3728.8,1.738]
[1754348790718,1.6898,3728.9,3728.8,1.738]
[1754348792924,4.8976,3728.9,3728.8,1.738]
[1754348793920,4.6158,3728.9,3728.8,1.738]
[1754348794121,3.2078,3728.9,3728.8,1.738]
[1754348795324,0.9951,3729.6,3729.5,0.4805]
[1754348795519,2.23882953,3729.6,3729.5,1.2152]
[1754348795826,2.52652953,3729.6,3729.5,1.2152]
[1754348796724,2.52652953,3729.6,3729.5,0.1998]
[1754348797616,1.30342953,3729.6,3729.5,1.2152]
[1754348798021,1.50542953,3729.6,3729.5,1.2152]
[1754348798523,2.23882953,3729.6,3729.5,1.2152]
[1754348798919,2.52652953,3729.6,3729.5,1.2152]
[1754348799229,2.52652953,3729.6,3729.5,0.7688]
[1754348799524,1.81372953,3729.6,3729.5,0.7688]
[1754348799724,2.23882953,3729.6,3729.5,1.2152]
[1754348800529,2.52652953,3729.6,3729.5,1.2152]
[1754348801229,1.30342953,3729.6,3729.5,1.2152]
[1754348801423,1.50137858,3729.6,3729.5,1.2152]
[1754348801626,1.50542953,3729.6,3729.5,1.2152]
[1754348802328,2.94913402,3729.6,3729.5,1.2152]
[1754348802532,3.14728107,3729.6,3729.5,1.2152]
[1754348802834,2.94913402,3729.6,3729.5,1.2152]
[1754348803024,3.14726439,3729.6,3729.5,1.2152]
[1754348803224,3.45556439,3729.6,3729.5,1.2152]
[1754348803422,2.0118599,3729.6,3729.5,1.2152]
[1754348803628,2.5453599,3729.6,3729.4,0.53621]
[1754348803926,2.24414,3729.3,3729.2,0.53624]
[1754348804227,3.06276953,3729.3,3729.2,0.53624]
[1754348804425,3.88019387,3729.3,3729.2,1.75144]
[1754348805430,4.16789387,3729.3,3729.2,1.75144]
[1754348805836,1.53135,3729.2,3729.1,1.75145]
[1754348806027,2.23882953,3729.2,3729.1,1.75145]
[1754348806233,1.30342953,3729.2,3729.1,1.75145]
[1754348806727,1.78085748,3729.2,3729.1,1.75145]
[1754348807327,3.48875748,3729.2,3729.1,1.75145]
[1754348807831,1.78085748,3729.2,3729.1,1.75145]
[1754348808032,2.46765748,3729.2,3729.1,1.75145]
[1754348808333,3.20105748,3729.2,3729.1,1.75145]
[1754348808631,3.48875748,3729.2,3729.1,1.75145]
[1754348809128,3.48875748,3729.2,3728.7,3.2078]
[1754348809129,0.7047,3729.1,3728.7,3.2078]
[1754348809334,1.7079,3728.8,3728.7,1.01682]
[1754348809630,2.52652953,3728.8,3728.7,1.30512]
[1754348809832,2.52652953,3728.8,3728.7,1.75152]
[1754348810629,1.81372953,3728.8,3728.7,1.75152]
[1754348811233,0.81862953,3728.8,3728.7,1.75152]
[1754348811936,1.30342953,3728.8,3728.7,0.82462]
[1754348812132,2.52652953,3728.8,3728.7,1.75152]
[1754348813037,2.23882953,3728.8,3728.7,1.75152]
[1754348813535,2.52652953,3728.8,3728.7,1.30512]
[1754348813839,2.52652953,3728.8,3728.7,1.75152]
[1754348814039,2.52652953,3728.8,3728.7,0.53632]
[1754348814442,1.24104,3728.6,3728.4,0.53635]
[1754348814740,1.7079,3728.4,3728.3,3.74417]
[1754348815042,2.52652953,3728.4,3728.3,3.74417]
[1754348815340,2.52652953,3728.4,3728.3,0.53637]
[1754348816136,1.24111,3728.2,3727.6,1.34118]
[1754348816444,1.7079,3727.7,3727.6,1.75168]
[1754348816737,2.53263367,3727.7,3727.6,1.01698]
[1754348816932,2.53263367,3727.7,3727.6,1.75168]
[1754348817335,2.53263367,3727.7,3727.6,1.01698]
[1754348817534,2.53263367,3727.7,3727.6,1.30528]
[1754348819231,2.53263367,3727.7,3727.6,1.75168]
[1754348819431,1.81983367,3727.7,3727.6,1.75168]
[1754348819633,0.82473367,3727.7,3727.6,1.75168]
[1754348820345,1.30953367,3727.7,3727.6,1.75168]
[1754348820544,2.53263367,3727.7,3727.6,1.30528]
[1754348820741,1.7079,3727.7,3727.6,1.30528]
[1754348822340,0.53651,3727.5,3727.4,0.5365]
[1754348822544,1.7678,3727.3,3727.2,0.53654]
[1754348822844,1.7678,3727.0,3726.9,4.24048]
[1754348823045,1.7678,3727.0,3726.9,1.03268]
[1754348823243,1.0084,3726.6,3726.5,4.4359]
[1754348823440,1.7678,3726.6,3726.5,4.4359]
[1754348823849,1.0084,3726.6,3726.5,4.97254]
[1754348824041,0.7039,3726.6,3726.5,4.97254]
[1754348824547,0.5062,3726.9,3726.8,1.46669]
[1754348824842,1.4616,3727.9,3727.8,1.2281]
[1754348825049,2.48289924,3727.9,3727.8,0.5034]
[1754348825248,2.78909924,3727.9,3727.8,0.5034]
[1754348825547,1.96604315,3727.9,3727.8,1.2281]
[1754348826242,1.7678,3727.9,3727.8,1.2281]
[1754348827044,0.7022,3727.2,3727.1,1.03995]
[1754348827348,0.5062,3727.2,3727.1,1.03995]
[1754348827549,1.4716,3727.5,3727.4,1.46661]
[1754348827750,0.5062,3727.5,3727.4,1.76461]
[1754348829849,3.2078,3727.6,3727.4,1.76461]
[1754348830041,0.2,3727.4,3727.3,0.53651]
[1754348830245,1.7678,3727.4,3727.3,0.53651]
[1754348830646,1.7678,3727.4,3727.3,1.03261]
[1754348830847,0.5062,3727.4,3727.3,1.03261]
[1754348831049,0.5062,3727.4,3727.3,1.76461]
[1754348831546,1.7678,3727.4,3727.3,0.53651]
[1754348831749,1.7678,3727.4,3727.3,1.33791]
[1754348831944,1.7678,3727.4,3727.3,1.76461]
[1754348835150,1.4716,3727.4,3727.3,1.76461]
[1754348835551,1.0084,3727.4,3727.3,1.76461]
[1754348836143,1.4716,3727.4,3727.3,1.76461]
[1754348836350,1.7678,3727.4,3727.3,1.76461]
[1754348837243,1.4716,3727.4,3727.3,1.76461]
[1754348837652,0.5062,3727.4,3727.3,1.76461]
[1754348837848,3.514,3727.6,3727.5,1.46659]
[1754348838046,0.5062,3727.6,3727.5,1.76459]
[1754348839850,0.7039,3727.6,3727.5,1.76459]
[1754348840450,1.0084,3727.6,3727.5,1.76459]
[1754348842554,1.4716,3727.6,3727.5,1.76459]
[1754348843449,0.83264,3727.9,3727.8,0.53645]
[1754348843656,3.12963984,3727.9,3727.8,1.76455]
[1754348844549,3.32805559,3727.9,3727.8,1.76455]
[1754348846459,2.03221559,3727.9,3727.8,1.03985]
[1754348846659,2.0324018,3727.9,3727.8,1.76455]
[1754348846866,2.7918018,3727.9,3727.8,1.76455]
[1754348847461,2.7918018,3727.9,3727.8,0.53645]
[1754348848865,2.2626518,3727.9,3727.7,0.53645]
[1754348849057,2.7918018,3727.8,3727.7,1.76455]
[1754348850968,2.79309931,3727.8,3727.7,1.76455]
[1754348852168,2.79309931,3727.8,3727.7,1.2281]
[1754348852569,2.79316418,3727.8,3727.7,1.2281]
[1754348854968,2.79316418,3727.8,3727.7,0.5034]
[1754348855164,2.79316418,3727.8,3727.7,0.7878]
[1754348855969,2.79316418,3727.8,3727.7,1.2115]
[1754348858571,2.7932145,3727.8,3727.7,1.2115]
[1754348859776,2.79321427,3727.8,3727.7,1.2115]
[1754348861470,2.59449735,3727.8,3727.7,1.2115]
[1754348861668,2.79322141,3727.8,3727.7,1.2115]
[1754348862073,2.49702141,3727.8,3727.7,1.2115]
[1754348863072,1.53162141,3727.8,3727.7,1.2115]
[1754348863266,1.33289735,3727.8,3727.7,1.2115]
[1754348866065,1.31829735,3727.8,3727.7,1.2115]
[1754348867376,2.26579735,3727.8,3727.7,1.2115]
[1754348867875,2.56439735,3727.8,3727.7,1.2115]
[1754348871275,2.26579735,3727.8,3727.7,1.2115]
[1754348871577,2.56439735,3727.8,3727.7,1.2115]
[1754348876378,1.31329735,3727.8,3727.7,1.2115]
[1754348876578,0.82669735,3727.8,3727.7,1.2115]
[1754348876977,3.4994,3728.4,3728.3,0.4771]
[1754348877174,3.69338079,3728.4,3728.3,1.72158]
[1754348877378,3.6967,3728.4,3728.3,1.72158]
[1754348877788,4.1576,3728.4,3728.3,1.72158]
[1754348878685,4.4483,3728.4,3728.3,1.72158]
[1754348879089,3.2078,3728.4,3728.3,1.72158]
[1754348879386,3.4994,3728.4,3728.3,1.72158]
[1754348880384,0.2916,3728.7,3728.6,1.72153]
[1754348880583,38.621,3729.7,3729.2,1.01335]
[1754348880584,0.96217862,3729.3,3729.2,1.01335]
[1754348880782,0.19371978,3729.3,3729.2,1.01335]
[1754348880982,0.96217862,3729.4,3729.2,1.01335]
[1754348881184,0.2916,3729.4,3729.2,1.01335]
[1754348881381,0.2916,3729.4,3729.3,1.1852]
[1754348881581,0.4889,3729.4,3729.3,1.1852]
[1754348882186,1.3866,3729.4,3729.3,1.1852]
[1754348883089,2.21365,3729.3,3729.1,0.53626]
[1754348883286,1.6774,3729.2,3729.1,0.53626]
[1754348884082,1.6774,3729.2,3729.1,0.74226]
[1754348884277,1.6774,3729.2,3729.1,1.45936]
[1754348885687,1.6774,3729.2,3729.1,1.74726]
[1754348886588,0.7714,3729.2,3729.1,1.74726]
[1754348886780,3.2078,3729.3,3729.1,1.03016]
[1754348886983,3.507,3729.3,3729.2,1.211]
[1754348887983,4.5862,3729.3,3729.2,1.211]
[1754348888891,0.6604,3729.3,3729.1,0.53626]
[1754348889187,1.6774,3729.2,3729.1,0.53626]
[1754348889785,1.6774,3729.2,3729.1,1.03546]
[1754348889985,1.6774,3729.2,3729.1,1.45936]
[1754348890181,1.6774,3729.2,3729.1,1.74726]
[1754348892187,0.4881,3729.2,3729.1,1.74726]
[1754348892391,1.6774,3729.2,3729.1,1.74726]
[1754348894192,1.6774,3729.2,3729.1,1.32336]
[1754348894794,1.6774,3729.2,3729.1,0.74226]
[1754348894994,1.6774,3729.2,3729.1,0.53626]
[1754348897196,1.6774,3729.2,3729.1,1.03546]
[1754348897396,1.6774,3729.2,3729.1,1.74726]
[1754348897797,0.4881,3729.2,3729.1,1.74726]
[1754348898293,0.9596,3729.2,3729.1,1.74726]
[1754348898493,1.3784,3729.2,3729.1,1.74726]
[1754348898789,1.6774,3729.2,3729.1,1.74726]
[1754348899195,1.6774,3729.2,3729.1,0.53626]
[1754348899499,1.6774,3729.1,3729.0,0.53627]
[1754348900294,1.6774,3729.1,3729.0,1.03547]
[1754348900593,0.3771,3728.6,3728.5,0.4992]
[1754348900797,1.6774,3728.6,3728.5,1.211]
[1754348900994,1.6774,3728.6,3728.5,1.32345]
[1754348901195,1.6774,3728.6,3728.5,1.74735]
[1754348901395,1.6774,3728.4,3728.3,0.206]
[1754348901598,2.21378,3728.3,3728.2,0.53638]
[1754348901794,2.21378,3728.3,3728.1,0.5364]
[1754348902101,2.21381,3728.1,3728.0,1.03562]
[1754348902299,1.6774,3727.9,3727.8,1.03034]
[1754348902495,1.6774,3727.9,3727.8,0.74244]
[1754348902996,1.6774,3727.9,3727.8,1.74744]
[1754348904195,2.21385,3727.9,3727.7,0.53645]
[1754348904393,1.6774,3727.8,3727.7,0.74245]
[1754348904594,1.4892,3727.7,3727.6,0.53647]
[1754348904794,1.6774,3727.7,3727.6,0.74247]
[1754348904995,1.6774,3727.7,3727.6,0.4992]
[1754348905498,0.53648,3727.6,3727.4,0.9604]
[1754348905694,1.6774,3727.5,3727.4,0.7425]
[1754348905889,1.6774,3727.5,3727.4,0.4992]
[1754348906094,1.6774,3727.0,3726.9,0.4992]
[1754348907192,0.6604,3726.8,3726.7,0.6299]
[1754348907497,1.6774,3726.8,3726.7,1.211]
[1754348908801,1.6774,3726.8,3726.7,0.4992]
[1754348909297,1.6774,3726.8,3726.7,0.7871]
[1754348909502,1.6774,3726.8,3726.7,1.211]
[1754348914003,0.4715,3726.8,3726.7,1.211]
[1754348914298,0.9795,3727.0,3726.9,1.03858]
[1754348914603,1.7362,3727.0,3726.9,1.03858]
[1754348914901,1.7362,3727.0,3726.9,1.78098]
[1754348917604,0.53661,3726.8,3726.7,0.7342]
[1754348917803,2.27281,3726.8,3726.7,0.1976]
[1754348918505,2.27282,3726.6,3726.5,1.02533]
[1754348919002,1.7362,3726.6,3726.5,1.78103]
[1754348920005,1.4416,3726.6,3726.5,0.53663]
[1754348920403,1.7362,3726.6,3726.5,1.78103]
[1754348921205,1.4416,3726.6,3726.5,1.78103]
[1754348921501,0.2919,3727.2,3726.6,0.7424]
[1754348921702,2.27274,3727.2,3727.1,1.2444]
[1754348924908,2.27274,3727.2,3727.1,0.4887]
[1754348925108,2.27276,3727.1,3727.0,0.53656]
[1754348925703,1.7362,3727.1,3727.0,0.53656]
[1754348925906,1.7362,3727.1,3727.0,1.78096]
[1754348928011,1.7362,3727.1,3727.0,1.2444]
[1754348928208,1.01871,3726.8,3726.7,0.5366]
[1754348928407,0.754,3726.9,3726.5,0.73423]
[1754348928408,1.22422,3726.6,3726.5,0.73423]
[1754348928614,1.2541,3726.3,3726.2,0.82778]
[1754348928815,0.53667,3726.4,3726.0,3.6591]
[1754348928816,2.27288,3726.2,3726.0,4.1958]
[1754348929009,1.3381,3726.1,3726.0,4.6845]
[1754348929212,1.7362,3726.1,3726.0,1.4767]
[1754348930112,1.7362,3726.1,3726.0,1.7811]
[1754348930316,1.4416,3726.1,3726.0,1.7811]
[1754348930516,1.7362,3726.1,3726.0,1.7811]
[1754348931512,0.7869,3726.1,3726.0,1.7811]
[1754348931819,1.7362,3726.1,3726.0,1.7811]
[1754348932615,0.7869,3726.1,3726.0,1.7811]
[1754348932823,4.6494,3726.5,3726.4,1.32975]
[1754348933018,4.944,3726.5,3726.4,1.2444]
[1754348933318,1.7362,3726.3,3726.2,0.53667]
[1754348933814,1.0486,3726.2,3726.1,0.53669]
[1754348934018,1.7362,3726.2,3726.1,1.78109]
[1754348934420,1.7362,3726.2,3726.1,1.2444]
[1754348935018,1.4416,3726.2,3726.0,0.5367]
[1754348935221,1.4416,3726.1,3726.0,0.7343]
[1754348935414,0.7567,3726.0,3725.9,0.53671]
[1754348935619,0.9822,3726.0,3725.9,1.02541]
[1754348935915,1.7362,3726.0,3725.9,1.47671]
[1754348936121,1.7362,3726.0,3725.9,1.78111]
[1754348937021,1.7362,3726.0,3725.9,0.53671]
[1754348937218,1.7362,3726.0,3725.9,0.73431]
[1754348937423,1.7362,3726.0,3725.9,1.02541]
[1754348937717,0.2946,3725.7,3725.6,0.53676]
[1754348937926,1.7362,3725.7,3725.6,1.47676]
[1754348938124,2.56009403,3725.7,3725.6,1.47676]
[1754348938320,2.56009403,3725.7,3725.6,0.4887]
[1754348938813,3.09685403,3725.7,3725.5,3.2078]
[1754348939014,1.30599403,3725.6,3725.5,3.7098]
[1754348939319,2.55982922,3725.6,3725.5,4.1611]
[1754348939625,2.55982922,3725.6,3725.5,4.4522]
[1754348940118,0.7869,3725.6,3725.5,4.4522]
[1754348940527,0.9795,3725.6,3725.5,4.4522]
[1754348940721,0.7869,3725.6,3725.5,4.4522]
[1754348940927,1.7362,3725.6,3725.5,0.4887]
[1754348941122,0.9595,3725.5,3725.4,0.53679]
[1754348941323,1.7362,3725.5,3725.4,1.02549]
[1754348941825,1.7362,3725.5,3725.4,1.78589]
[1754348942727,1.7678,3725.2,3725.1,3.93714]
[1754348942926,1.4642,3725.2,3725.1,3.74464]
[1754348943125,1.7678,3725.2,3724.9,0.456]
[1754348943325,1.1604,3724.7,3724.6,1.47011]
[1754348943725,0.7119,3724.7,3724.6,1.75021]
[1754348943929,5.20862,3725.3,3725.2,0.4772]
[1754348944126,5.4945595,3725.3,3725.2,1.2133]
[1754348944336,5.7983595,3725.3,3725.2,0.7573]
[1754348944543,1.04309,3724.8,3724.6,0.53691]
[1754348944830,1.64587,3725.2,3724.5,3.2078]
[1754348944831,1.04671,3724.6,3724.5,0.7573]
[1754348945028,1.24881,3724.6,3724.5,1.2133]
[1754348945227,1.24881,3724.6,3723.6,0.456]
[1754348945228,0.4485,3724.5,3723.6,0.456]
[1754348945434,0.5059,3724.6,3723.8,3.2078]
[1754348945737,0.5062,3724.1,3723.8,3.74482]
[1754348945937,1.464,3724.0,3723.9,2.18001545]
[1754348946132,1.7678,3724.0,3723.9,1.43931545]
[1754348946336,1.7678,3724.0,3723.9,0.96671545]
[1754348946738,2.58876562,3724.0,3723.9,1.15921545]
[1754348946938,2.58876562,3724.0,3723.9,1.43931545]
[1754348947233,1.7678,3724.0,3723.9,1.43931545]
[1754348947433,2.58799007,3724.0,3723.9,0.96671545]
[1754348947838,2.58799007,3724.0,3723.9,1.15921545]
[1754348948138,1.7678,3724.0,3723.9,1.43931545]
[1754348948334,1.7678,3724.0,3723.9,1.50372545]
[1754348948541,1.7678,3724.0,3723.9,2.26102545]
[1754348948737,1.7678,3724.0,3723.9,2.71702545]
[1754348951242,1.7678,3724.4,3724.3,0.4726]
[1754348951441,2.58616252,3724.4,3724.3,0.1925]
[1754348951938,1.7678,3724.0,3723.9,0.96671545]
[1754348953837,2.58627048,3724.0,3723.9,0.96671545]
[1754348954042,1.4642,3724.0,3723.9,2.18001545]
[1754348954241,0.5059,3724.0,3723.9,2.18001545]
[1754348954442,1.32425836,3724.0,3723.9,2.18001545]
[1754348954743,2.58615836,3724.0,3723.9,1.70281545]
[1754348954938,2.58615836,3724.0,3723.9,1.89531545]
[1754348955243,0.81835836,3724.0,3723.9,2.18001545]
[1754348955440,3.2078,3724.1,3724.0,1.7503]
[1754348955638,3.7137,3724.1,3724.0,1.7503]
[1754348955840,3.2078,3724.7,3724.0,1.7503]
[1754348956040,3.4099,3724.7,3724.6,1.75021]
[1754348956344,5.0418481,3724.7,3724.6,1.75021]
[1754348956743,5.4903481,3724.7,3724.6,1.75021]
[1754348957342,5.7939481,3724.7,3724.6,1.75021]
[1754348957538,4.9756,3724.7,3724.6,1.75021]
[1754348957846,4.9756,3724.7,3724.6,0.1925]
[1754348958142,4.9756,3724.7,3723.9,0.96671545]
[1754348958143,0.5098,3724.2,3724.1,0.72948]
[1754348958346,1.7678,3724.2,3724.1,1.75028]
[1754348958646,1.4642,3724.2,3724.1,1.75028]
[1754348958847,4.672,3724.2,3724.1,1.75028]
[1754348959145,4.9756,3724.2,3724.1,1.75028]
[1754348959546,4.2235,3724.2,3724.1,1.75028]
[1754348959748,3.7137,3724.2,3724.1,1.75028]
[1754348960047,3.2078,3724.2,3724.1,1.75028]
[1754348960445,3.7137,3724.2,3724.1,1.75028]
[1754348961047,4.2235,3724.2,3724.1,1.29428]
[1754348961251,4.9756,3724.2,3724.1,1.75028]
[1754348961743,4.9756,3724.2,3724.1,0.72948]
[1754348961944,4.9756,3724.2,3724.1,1.29428]
[1754348962145,4.9756,3724.2,3724.1,1.75028]
[1754348962847,3.2078,3724.2,3721.9,5.0]
[1754348963145,1.24887,3722.1,3722.0,1.416]
[1754348963444,0.7116,3722.1,3722.0,1.5463]
[1754348963848,0.5059,3722.1,3722.0,1.5463]
[1754348964549,0.7116,3722.1,3722.0,1.5463]
[1754348965342,0.7116,3722.1,3722.0,1.2133]
[1754348966052,0.7116,3722.1,3722.0,1.5463]
[1754348967149,3.2078,3722.4,3722.3,1.5463]
[1754348967451,4.33144399,3722.4,3722.3,1.5463]
[1754348967651,4.73924399,3722.4,3722.3,1.95324]
[1754348967850,5.04284399,3722.4,3722.3,0.53724]
[1754348968248,1.0152,3722.3,3722.2,0.53725]
[1754348968552,1.83504399,3722.3,3722.2,0.53725]
[1754348968753,1.83504399,3722.3,3722.2,0.81735]
[1754348969156,1.83504399,3722.3,3722.2,1.75055]
[1754348969855,1.53144399,3722.3,3722.2,1.75055]
[1754348970555,1.53144399,3722.3,3722.2,1.95325]
[1754348971656,1.53144399,3722.3,3722.2,2.08395]
[1754348972359,1.32574399,3722.3,3722.2,2.08395]
[1754348972657,0.81984399,3722.3,3722.2,2.08395]
[1754348974449,1.31094399,3722.3,3722.2,2.08395]
[1754348974654,1.50924399,3722.3,3722.2,2.08395]
[1754348975554,1.31094399,3722.3,3722.2,1.91295]
[1754348975855,1.50924399,3722.3,3722.2,2.04365]
[1754348976556,1.31094399,3722.3,3722.2,2.04365]